bitfinex/quotes_SOLUSD_20241031
["timestamp","ask_amount","ask_price","bid_price","bid_amount"]
[1730386761673,23.95215702,170.07,170.06,0.1]
[1730386761872,23.95215702,170.07,170.06,0.2]
[1730386762759,23.95215702,170.07,170.06,0.1]
[1730386763278,23.95215702,170.07,170.06,0.2]
[1730386763479,23.95215702,170.07,170.06,0.1]
[1730386763867,23.95215702,170.07,170.06,0.2]
[1730386764687,49.83185702,170.08,170.06,0.2]
[1730386764986,29.83185702,170.08,170.06,0.1]
[1730386765186,49.83185702,170.08,170.06,0.1]
[1730386765488,49.83185702,170.08,170.07,0.1]
[1730386766271,23.95215702,170.09,170.08,0.1]
[1730386766479,20.0,170.1,170.09,0.1]
[1730386766683,35.95826247,170.12,170.09,0.2]
[1730386767289,35.95826247,170.12,170.11,0.1]
[1730386767484,40.26918256,170.12,170.11,0.1]
[1730386768288,55.95826247,170.12,170.11,0.1]
[1730386768786,60.2670781,170.12,170.11,0.2]
[1730386768970,55.95826247,170.12,170.11,0.2]
[1730386770193,26.12790545,170.12,170.11,0.1]
[1730386770697,26.12790545,170.12,170.11,0.2]
[1730386770879,6.12790545,170.12,170.11,17.00197591]
[1730386771392,6.12790545,170.12,170.11,0.2]
[1730386773200,6.12790545,170.12,169.95,6.242]
[1730386773201,44.102374,170.09,169.95,6.242]
[1730386773400,16.80197591,169.96,169.95,6.242]
[1730386773698,16.80197591,169.96,169.93,0.6050007]
[1730386773899,16.80197591,169.97,169.93,0.6050007]
[1730386774100,16.80197591,170.0,169.95,16.80197591]
[1730386774305,5.8787,170.11,170.01,0.1]
[1730386774601,26.88242276,170.15,170.02,0.2]
[1730386774804,4.30444109,170.14,170.02,0.2]
[1730386774976,4.30444109,170.13,170.09,26.88242276]
[1730386775308,6.12888629,170.14,170.11,26.88242276]
[1730386775510,4.3053279,170.13,170.11,26.88242276]
[1730386775806,12.00638629,170.14,170.08,26.88242276]
[1730386775807,38.88880905,170.14,170.08,26.88242276]
[1730386778308,38.88880905,170.14,170.09,26.88242276]
[1730386778906,26.88242276,170.12,170.07,26.88242276]
[1730386779205,38.88880905,170.14,170.08,26.88242276]
[1730386779788,26.88242276,170.13,170.08,26.88242276]
[1730386779994,38.88880905,170.14,170.09,26.88242276]
[1730386780195,38.88880905,170.14,170.08,26.88242276]
[1730386780399,38.88880905,170.14,170.09,26.88242276]
[1730386780619,38.88880905,170.14,170.08,26.88242276]
[1730386780909,38.88880905,170.14,170.07,5.8799]
[1730386780910,6.12888629,170.14,170.1,26.88242276]
[1730386781407,6.12652861,170.18,170.13,26.88242276]
[1730386781616,4.30757775,170.17,170.12,26.88242276]
[1730386781785,26.88242276,170.17,170.12,26.88242276]
[1730386781980,26.88242276,170.17,170.08,23.776884]
[1730386781981,26.88242276,170.14,170.09,26.88242276]
[1730386782187,26.88242276,170.12,170.07,41.58222276]
[1730386782395,26.88242276,170.11,170.07,14.6998]
[1730386782604,26.88242276,170.11,170.06,43.53562276]
[1730386782803,26.88242276,170.09,170.05,6.2079]
[1730386783684,26.88242276,170.1,170.05,6.2079]
[1730386784088,26.88242276,170.1,170.05,38.97082276]
[1730386784287,6.12652861,170.18,170.09,26.88242276]
[1730386784511,4.30752446,170.17,170.15,26.88242276]
[1730386784712,26.88242276,170.19,170.14,26.88242276]
[1730386784888,4.307882,170.18,170.13,26.88242276]
[1730386785083,26.88242276,170.19,170.13,26.88242276]
[1730386785289,26.88242276,170.21,170.15,26.88242276]
[1730386785495,26.88242276,170.2,170.15,26.88242276]
[1730386785889,26.88242276,170.21,170.15,26.88242276]
[1730386786213,26.88242276,170.2,170.15,26.88242276]
[1730386786689,32.75752276,170.21,170.16,26.88242276]
[1730386787017,26.88242276,170.2,170.15,32.75952276]
[1730386787608,26.88242276,170.21,170.16,26.88242276]
[1730386787783,26.88242276,170.2,170.15,26.88242276]
[1730386787983,6.12399004,170.23,170.18,26.88242276]
[1730386787984,33.0064128,170.23,170.18,26.88242276]
[1730386788196,31.18682376,170.22,170.17,26.88242276]
[1730386788393,26.88242276,170.22,170.17,26.88242276]
[1730386788899,6.12325541,170.25,170.2,26.88242276]
[1730386789792,33.00567817,170.25,170.19,26.88242276]
[1730386789998,33.00567817,170.25,170.2,26.88242276]
[1730386790395,6.12325541,170.25,170.21,26.88242276]
[1730386790600,32.75572276,170.26,170.2,26.88242276]
[1730386790808,26.88242276,170.25,170.2,26.88242276]
[1730386791721,26.88242276,170.25,170.2,32.75782276]
[1730386792294,26.88242276,170.26,170.21,26.88242276]
[1730386792520,26.88242276,170.27,170.22,26.88242276]
[1730386792699,26.88242276,170.26,170.21,26.88242276]
[1730386793294,6.12406839,170.29,170.21,0.2]
[1730386793526,4.2961147,170.28,170.25,26.88242276]
[1730386793818,32.75402276,170.31,170.25,26.88242276]
[1730386793995,27.90250135,170.4,170.38,0.1]
[1730386794190,5.8651,170.5,170.41,0.1]
[1730386794393,26.88242276,170.48,170.43,26.88242276]
[1730386794795,26.88242276,170.5,170.45,26.88242276]
[1730386795309,5.8648,170.51,170.47,26.88242276]
[1730386795513,15.7294007,170.53,170.48,26.88242276]
[1730386795700,6.4691007,170.53,170.49,26.88242276]
[1730386796297,6.4691007,170.53,170.47,26.88242276]
[1730386796298,33.35152346,170.53,170.47,26.88242276]
[1730386796507,33.35152346,170.53,170.48,1.46741686]
[1730386796699,20.0,170.52,170.49,1.46741686]
[1730386796910,20.0,170.52,170.5,1.46723686]
[1730386797093,20.0,170.52,170.47,26.88242276]
[1730386797499,26.88242276,170.51,170.46,26.88242276]
[1730386797809,26.88242276,170.5,170.45,26.88242276]
[1730386798604,26.88242276,170.51,170.46,26.88242276]
[1730386798807,26.88242276,170.48,170.43,26.88242276]
[1730386799016,26.88242276,170.49,170.43,26.88242276]
[1730386799196,20.0,170.48,170.44,26.88242276]
[1730386799502,26.88242276,170.46,170.41,26.88242276]
[1730386799707,26.88242276,170.45,170.4,26.88242276]
[1730386799917,26.88242276,170.44,170.39,26.88242276]
[1730386800222,27.00791276,170.44,170.39,26.88242276]
[1730386800395,27.00791276,170.44,170.38,26.88242276]
[1730386800396,26.88242276,170.43,170.38,26.88242276]
[1730386800819,20.0,170.41,170.37,26.88242276]
[1730386801006,20.0,170.41,170.31,31.3414]
[1730386801007,46.88242276,170.41,170.36,26.88242276]
[1730386801202,26.88242276,170.4,170.34,26.88242276]
[1730386801396,26.88242276,170.4,170.35,26.88242276]
[1730386801721,32.75112276,170.4,170.35,26.88242276]
[1730386801915,46.88242276,170.41,170.35,26.88242276]
[1730386802115,20.0,170.41,170.38,26.88242276]
[1730386802316,0.1,170.46,170.33,0.1]
[1730386802317,0.6050007,170.53,170.52,0.1]
[1730386802620,10.96775167,170.69,170.53,0.1]
[1730386802621,0.1,170.69,170.53,0.1]
[1730386802807,20.5062,170.68,170.53,0.1]
[1730386803208,5.8589,170.68,170.54,0.1]
[1730386803411,5.9589,170.68,170.54,0.1]
[1730386803702,32.74132276,170.68,170.62,26.88242276]
[1730386803922,26.88242276,170.65,170.59,26.88242276]
[1730386804220,26.88242276,170.63,170.56,26.88242276]
[1730386804444,26.88242276,170.61,170.55,26.88242276]
[1730386804723,20.0,170.61,170.47,20.6304]
[1730386805223,20.0,170.58,170.53,43.45884678]
[1730386805404,23.902374,170.58,170.54,43.45884678]
[1730386805605,23.902374,170.58,170.56,43.45884678]
[1730386805606,0.12549,170.58,170.56,43.45884678]
[1730386806106,23.776884,170.6,170.57,43.45884678]
[1730386806309,16.2185007,170.7,170.59,43.45884678]
[1730386806508,22.0769007,170.7,170.66,43.45884678]
[1730386807398,22.0769007,170.7,170.65,43.45884678]
[1730386807712,22.0769007,170.7,170.66,43.45884678]
[1730386808303,22.0767007,170.7,170.66,43.45884678]
[1730386808526,22.0767007,170.7,170.61,5.8612]
[1730386808527,65.53554748,170.7,170.65,43.45884678]
[1730386808722,65.53554748,170.7,170.64,43.45884678]
[1730386809702,0.12549,170.68,170.65,43.45884678]
[1730386809924,0.12549,170.68,170.6,20.5157]
[1730386809925,0.12549,170.68,170.64,43.45884678]
[1730386810215,43.58433678,170.68,170.62,43.45884678]
[1730386810419,43.58433678,170.68,170.63,43.45884678]
[1730386810818,69.31754678,170.69,170.63,43.45884678]
[1730386811127,43.58433678,170.68,170.62,43.45884678]
[1730386811419,63.45884678,170.67,170.62,43.45884678]
[1730386811603,20.0,170.67,170.62,43.45884678]
[1730386812123,20.0,170.67,170.63,43.45884678]
[1730386812322,43.45884678,170.65,170.6,43.45884678]
[1730386812521,0.12549,170.6,170.54,43.45884678]
[1730386812732,43.45884678,170.58,170.53,43.45884678]
[1730386813026,49.32124678,170.58,170.53,43.45884678]
[1730386813406,43.45884678,170.56,170.51,43.45884678]
[1730386813902,43.45884678,170.57,170.51,43.45884678]
[1730386814103,43.45884678,170.56,170.51,43.45884678]
[1730386814312,0.12549,170.55,170.5,43.45884678]
[1730386814511,43.58433678,170.55,170.49,43.45884678]
[1730386814831,43.45884678,170.57,170.51,43.45884678]
[1730386815123,43.45884678,170.57,170.47,20.5314]
[1730386815124,43.45884678,170.55,170.5,43.45884678]
[1730386815423,25.8632,170.56,170.51,43.45884678]
[1730386815424,69.32204678,170.56,170.51,43.45884678]
[1730386815627,69.32204678,170.56,170.48,20.53]
[1730386815628,25.8632,170.56,170.52,43.45884678]
[1730386816004,25.8632,170.56,170.51,43.45884678]
[1730386816327,69.32204678,170.56,170.51,43.45884678]
[1730386817026,43.45884678,170.52,170.47,43.45884678]
[1730386817226,43.45884678,170.51,170.46,43.45884678]
[1730386817614,43.45884678,170.52,170.47,43.45884678]
[1730386818015,25.98969,170.53,170.48,43.45884678]
[1730386818213,25.98969,170.53,170.49,43.45884678]
[1730386818517,20.12549,170.55,170.52,43.45884678]
[1730386818707,20.0,170.55,170.52,43.45884678]
[1730386819130,20.0,170.55,170.51,43.45884678]
[1730386819322,63.45884678,170.55,170.49,43.45884678]
[1730386819514,43.45884678,170.54,170.49,43.45884678]
[1730386819718,43.45884678,170.54,170.49,49.32414678]
[1730386820131,43.45884678,170.53,170.48,43.45884678]
[1730386820715,69.32224678,170.55,170.49,43.45884678]
[1730386821315,43.45884678,170.54,170.48,43.45884678]
[1730386821622,43.45884678,170.53,170.48,43.45884678]
[1730386821821,25.8634,170.55,170.47,63.99024678]
[1730386821822,43.45884678,170.52,170.47,63.99024678]
[1730386822224,43.45884678,170.51,170.47,14.6653]
[1730386822433,43.45884678,170.51,170.47,20.5314]
[1730386822622,43.45884678,170.53,170.47,63.99024678]
[1730386823025,43.45884678,170.53,170.48,43.45884678]
[1730386823229,43.45884678,170.62,170.52,43.45884678]
[1730386823426,43.45884678,170.62,170.57,43.45884678]
[1730386824016,49.31974678,170.62,170.57,43.45884678]
[1730386824213,43.45884678,170.62,170.57,43.45884678]
[1730386824516,43.45884678,170.61,170.56,49.32184678]
[1730386824924,49.31984678,170.62,170.56,49.32184678]
[1730386825326,49.31984678,170.62,170.57,43.45884678]
[1730386825525,43.45884678,170.61,170.56,43.45884678]
[1730386825837,43.58433678,170.59,170.54,43.45884678]
[1730386826542,0.12549,170.59,170.54,26.74047816]
[1730386826716,5.98759,170.59,170.54,26.74047816]
[1730386827122,32.60187816,170.61,170.56,26.74047816]
[1730386829017,26.74047816,170.6,170.55,26.74047816]
[1730386829241,32.60187816,170.61,170.56,26.74047816]
[1730386830126,26.74047816,170.61,170.56,26.74047816]
[1730386830331,26.74047816,170.61,170.56,32.60347816]
[1730386830533,32.60177816,170.61,170.56,26.74047816]
[1730386830847,26.74047816,170.61,170.56,32.60337816]
[1730386831020,32.60177816,170.61,170.56,26.74047816]
[1730386831628,32.60177816,170.61,170.55,32.60377816]
[1730386832849,32.60177816,170.61,170.56,26.74047816]
[1730386833529,20.0,170.62,170.57,26.74047816]
[1730386833830,46.74047816,170.62,170.57,26.74047816]
[1730386834031,26.74047816,170.65,170.6,26.74047816]
[1730386834333,32.60007816,170.66,170.6,26.74047816]
[1730386834537,26.74047816,170.65,170.59,26.74047816]
[1730386834923,26.74047816,170.62,170.57,26.74047816]
[1730386835122,26.74047816,170.6,170.55,41.39867816]
[1730386835350,26.74047816,170.6,170.55,14.6582]
[1730386835728,26.74047816,170.6,170.55,20.5215]
[1730386835926,26.74047816,170.6,170.55,47.26197816]
[1730386836329,26.74047816,170.61,170.56,26.74047816]
[1730386836737,6.11640402,170.67,170.6,26.74047816]
[1730386836931,6.11640402,170.67,170.63,26.74047816]
[1730386837126,26.74047816,170.69,170.61,26.74047816]
[1730386837127,26.74047816,170.66,170.61,26.74047816]
[1730386837638,26.74047816,170.67,170.62,26.74047816]
[1730386837837,5.8586,170.69,170.57,0.2]
[1730386837838,26.74047816,170.68,170.63,26.74047816]
[1730386838328,26.74047816,170.68,170.63,41.39197816]
[1730386838649,26.74047816,170.65,170.6,26.74047816]
[1730386838844,6.4633007,170.7,170.61,26.74047816]
[1730386838845,26.74047816,170.66,170.61,26.74047816]
[1730386839029,26.74047816,170.65,170.6,26.74047816]
[1730386839543,6.4633007,170.7,170.62,26.74047816]
[1730386839544,26.74047816,170.67,170.62,26.74047816]
[1730386839843,26.74047816,170.68,170.63,26.74047816]
[1730386840045,0.12549,170.69,170.64,26.74047816]
[1730386840046,26.74047816,170.69,170.64,26.74047816]
[1730386840350,27.34547886,170.7,170.65,26.74047816]
[1730386840532,26.74047816,170.69,170.64,47.25127816]
[1730386840736,26.74047816,170.68,170.64,20.5108]
[1730386841050,27.34547886,170.7,170.64,47.25127816]
[1730386841347,26.74047816,170.69,170.64,47.25127816]
[1730386841551,0.6050007,170.7,170.65,26.74047816]
[1730386841552,27.34547886,170.7,170.65,26.74047816]
[1730386841717,27.34547886,170.7,170.64,47.25127816]
[1730386841923,26.74047816,170.69,170.64,47.25127816]
[1730386843126,27.34547886,170.7,170.64,47.25127816]
[1730386843743,26.74047816,170.68,170.63,26.74047816]
[1730386843954,26.74047816,170.64,170.6,14.6533]
[1730386844160,26.74047816,170.65,170.6,47.25537816]
[1730386845027,26.74047816,170.64,170.6,20.5149]
[1730386845542,26.74047816,170.61,170.57,14.6566]
[1730386845744,26.74047816,170.59,170.57,14.6566]
[1730386846043,26.74047816,170.6,170.57,14.6566]
[1730386846434,26.74047816,170.61,170.57,14.6566]
[1730386847554,26.74047816,170.58,170.54,14.6591]
[1730386847730,26.74047816,170.55,170.51,5.8647]
[1730386847925,26.74047816,170.52,170.47,26.74047816]
[1730386848237,26.74047816,170.54,170.48,26.74047816]
[1730386848443,26.74047816,170.54,170.49,26.74047816]
[1730386848847,26.74047816,170.57,170.48,0.1]
[1730386849156,26.74047816,170.57,170.52,26.74047816]
[1730386849324,26.74047816,170.57,170.51,26.74047816]
[1730386849524,26.74047816,170.57,170.52,5.8644]
[1730386849844,26.74047816,170.56,170.52,5.8644]
[1730386850150,26.74047816,170.55,170.5,26.74047816]
[1730386850348,26.74047816,170.55,170.5,32.60547816]
[1730386851257,26.74047816,170.55,170.5,47.26817816]
[1730386851750,26.74047816,170.54,170.5,20.5277]
[1730386851929,26.74047816,170.53,170.49,5.8654]
[1730386853049,26.74047816,170.52,170.48,20.5301]
[1730386853259,26.74047816,170.53,170.48,47.27057816]
[1730386853634,5.8635,170.55,170.48,47.27057816]
[1730386853635,26.74047816,170.54,170.49,26.74047816]
[1730386853833,26.74047816,170.57,170.51,26.74047816]
[1730386854353,26.74047816,170.56,170.51,26.74047816]
[1730386854939,26.74047816,170.58,170.53,26.74047816]
[1730386855255,26.74047816,170.56,170.51,41.40147816]
[1730386855431,26.74047816,170.56,170.51,14.661]
[1730386856049,26.74047816,170.56,170.51,47.26617816]
[1730386856254,26.74047816,170.58,170.53,26.74047816]
[1730386856645,26.74047816,170.56,170.51,47.26617816]
[1730386856959,26.74047816,170.57,170.51,47.26617816]
[1730386857157,26.74047816,170.57,170.52,26.74047816]
[1730386857355,26.74047816,170.58,170.53,26.74047816]
[1730386857655,26.74047816,170.59,170.54,26.74047816]
[1730386857862,26.74047816,170.6,170.55,26.74047816]
[1730386858156,26.74047816,170.63,170.58,26.74047816]
[1730386858359,26.74047816,170.65,170.6,26.74047816]
[1730386858943,26.74047816,170.67,170.62,26.74047816]
[1730386859142,26.74047816,170.67,170.61,26.74047816]
[1730386859363,26.74047816,170.66,170.61,26.74047816]
[1730386859547,26.74047816,170.64,170.59,26.74047816]
[1730386859745,26.74047816,170.65,170.6,26.74047816]
[1730386860149,26.74047816,170.65,170.61,5.8613]
[1730386860343,0.6050007,170.7,170.6,20.5154]
[1730386860344,26.74047816,170.64,170.6,20.5154]
[1730386861344,26.74047816,170.63,170.6,20.5154]
[1730386861860,26.74047816,170.61,170.57,5.8626]
[1730386862373,26.74047816,170.62,170.57,47.25977816]
[1730386863051,26.74047816,170.58,170.54,20.523]
[1730386863241,26.74047816,170.61,170.56,26.74047816]
[1730386863441,26.74047816,170.61,170.57,5.8626]
[1730386863879,26.74047816,170.6,170.57,5.8626]
[1730386864043,26.74047816,170.61,170.57,5.8626]
[1730386864243,26.74047816,170.6,170.57,5.8626]
[1730386864663,26.74047816,170.61,170.56,20.5199]
[1730386864964,26.74047816,170.6,170.56,20.5199]
[1730386865665,26.74047816,170.63,170.58,26.74047816]
[1730386865853,26.74047816,170.63,170.57,26.74047816]
[1730386866050,26.74047816,170.65,170.59,26.74047816]
[1730386866372,26.74047816,170.65,170.56,49.835]
[1730386866373,26.74047816,170.65,170.6,26.74047816]
[1730386866545,26.74047816,170.68,170.63,26.74047816]
[1730386866749,26.74047816,170.67,170.62,26.74047816]
[1730386867152,26.74047816,170.69,170.63,26.74047816]
[1730386867452,26.74047816,170.69,170.64,26.74047816]
[1730386867856,26.74047816,170.69,170.63,26.74047816]
[1730386868069,26.74047816,170.69,170.6,49.824]
[1730386868070,27.34547886,170.7,170.65,26.74047816]
[1730386868258,26.74047816,170.69,170.64,26.74047816]
[1730386868590,0.6050007,170.7,170.68,26.74047816]
[1730386868866,0.6050007,170.7,170.69,32.59897816]
[1730386870648,0.6050007,170.7,170.69,5.8585]
[1730386870848,0.6050007,170.7,170.69,32.59897816]
[1730386871050,0.6050007,170.7,170.68,26.74047816]
[1730386871248,26.74047816,170.69,170.64,14.6502]
[1730386871467,26.74047816,170.68,170.64,14.6502]
[1730386871682,26.74047816,170.69,170.64,41.39067816]
[1730386872355,26.74047816,170.69,170.64,47.25087816]
[1730386872761,26.74047816,170.68,170.64,20.5104]
[1730386873149,0.6050007,170.7,170.67,26.74047816]
[1730386873449,0.6050007,170.7,170.69,26.74047816]
[1730386874552,0.6050007,170.7,170.69,32.59897816]
[1730386874777,0.6050007,170.7,170.69,56.47586216]
[1730386875648,0.6050007,170.7,170.69,56.37586216]
[1730386875851,0.6050007,170.7,170.69,56.47586216]
[1730386877079,26.74047816,170.81,170.71,0.1]
[1730386877250,26.74047816,170.82,170.77,26.74047816]
[1730386877683,26.74047816,170.8,170.75,26.74047816]
[1730386877970,26.74047816,170.79,170.74,26.74047816]
[1730386878379,26.74047816,170.78,170.73,26.74047816]
[1730386878768,26.74047816,170.78,170.73,32.59737816]
[1730386878952,26.74047816,170.77,170.72,41.38387816]
[1730386879481,26.74047816,170.79,170.74,17.71047816]
[1730386879975,26.74047816,170.82,170.77,26.74047816]
[1730386880682,32.59457816,170.82,170.77,32.59607816]
[1730386881666,15.9367,170.85,170.77,32.59607816]
[1730386881667,26.74047816,170.83,170.78,26.74047816]
[1730386881868,32.59397816,170.84,170.78,26.74047816]
[1730386882267,32.59397816,170.84,170.79,26.74047816]
[1730386882452,26.74047816,170.84,170.78,26.74047816]
[1730386882659,26.74047816,170.82,170.77,47.23557816]
[1730386882877,26.74047816,170.81,170.77,14.6395]
[1730386883179,21.7898,170.85,170.78,26.74047816]
[1730386883180,26.74047816,170.83,170.78,26.74047816]
[1730386883490,48.53027816,170.85,170.8,26.74047816]
[1730386883656,26.74047816,170.84,170.79,26.74047816]
[1730386883988,26.74047816,170.86,170.8,26.74047816]
[1730386884170,26.74047816,170.86,170.81,26.74047816]
[1730386884657,26.74047816,170.86,170.78,20.4941]
[1730386884658,26.74047816,170.86,170.8,26.74047816]
[1730386884860,26.74047816,170.86,170.81,26.74047816]
[1730386885058,26.74047816,170.86,170.8,26.74047816]
[1730386885258,32.59337816,170.86,170.8,47.23207816]
[1730386885489,26.74047816,170.85,170.8,47.23207816]
[1730386885867,32.59337816,170.86,170.81,26.74047816]
[1730386886065,32.59337816,170.86,170.8,20.4916]
[1730386886066,0.6050007,170.87,170.85,26.74047816]
[1730386886281,0.6050007,170.87,170.86,26.74047816]
[1730386887300,0.6050007,170.87,170.86,56.37006216]
[1730386888182,0.6050007,170.87,170.86,32.59317816]
[1730386888385,0.6050007,170.87,170.86,56.37006216]
[1730386893288,0.6050007,170.87,170.86,56.59555216]
[1730386893495,0.6050007,170.87,170.86,56.37006216]
[1730386893879,0.6050007,170.87,170.86,56.59555216]
[1730386894082,0.6050007,170.87,170.86,56.72104216]
[1730386894292,26.74047816,170.99,170.88,0.1]
[1730386894493,26.74047816,171.0,170.95,26.74047816]
[1730386894675,26.74047816,170.99,170.94,26.74047816]
[1730386895002,26.74047816,171.0,170.95,26.74047816]
[1730386895499,26.74047816,170.99,170.94,26.74047816]
[1730386895799,5.8481,171.0,170.95,26.74047816]
[1730386896191,26.74047816,171.01,170.95,26.74047816]
[1730386896373,26.74047816,171.01,170.96,26.74047816]
[1730386896579,26.74047816,171.01,170.95,26.74047816]
[1730386897102,26.74047816,170.99,170.94,26.74047816]
[1730386897392,36.6719,171.03,170.9,5.8512]
[1730386897393,26.74047816,170.95,170.9,5.8512]
[1730386897578,32.59007816,170.95,170.9,32.59167816]
[1730386897777,5.8496,170.95,170.9,32.59167816]
[1730386897994,5.8496,170.95,170.91,26.74047816]
[1730386898185,26.74047816,170.97,170.9,20.4796]
[1730386898505,26.74047816,170.98,170.93,26.74047816]
[1730386898994,26.74047816,170.99,170.94,26.74047816]
[1730386899386,26.74047816,170.98,170.93,41.36617816]
[1730386899593,26.74047816,170.97,170.93,14.6257]
[1730386899899,26.74047816,170.96,170.91,26.74047816]
[1730386900080,26.74047816,170.96,170.91,32.59127816]
[1730386900603,26.74047816,170.93,170.89,20.4803]
[1730386900800,26.74047816,170.93,170.89,14.6286]
[1730386901304,26.74047816,170.95,170.9,26.74047816]
[1730386901597,26.74047816,170.96,170.91,26.74047816]
[1730386901796,26.74047816,170.95,170.9,32.59167816]
[1730386901999,26.74047816,170.95,170.9,26.74047816]
[1730386902502,26.74047816,170.94,170.89,47.22067816]
[1730386903182,26.74047816,170.92,170.87,26.74047816]
[1730386903385,26.74047816,170.93,170.88,26.74047816]
[1730386903679,5.8503,170.93,170.89,26.74047816]
[1730386903883,26.74047816,170.95,170.9,26.74047816]
[1730386904097,26.74047816,170.94,170.89,26.74047816]
[1730386904298,26.74047816,170.93,170.88,47.22257816]
[1730386904600,5.8486,170.98,170.86,26.74047816]
[1730386904601,26.74047816,170.91,170.86,26.74047816]
[1730386905300,26.74047816,170.95,170.9,26.74047816]
[1730386905695,26.74047816,170.95,170.9,32.59157816]
[1730386905902,26.74047816,170.93,170.89,14.6289]
[1730386906079,26.74047816,170.91,170.88,5.8517]
[1730386906391,26.74047816,170.9,170.86,20.4843]
[1730386906592,26.74047816,170.87,170.82,14.6346]
[1730386906795,26.74047816,170.85,170.8,26.74047816]
[1730386907285,26.74047816,170.86,170.81,26.74047816]
[1730386907486,26.74047816,170.87,170.82,26.74047816]
[1730386907693,26.74047816,170.86,170.81,26.74047816]
[1730386908001,5.8522,170.88,170.8,14.637]
[1730386908002,26.74047816,170.84,170.8,14.637]
[1730386908309,26.74047816,170.84,170.8,20.4918]
[1730386908627,26.74047816,170.86,170.8,47.23227816]
[1730386908778,26.74047816,170.85,170.8,47.23227816]
[1730386908979,5.8522,170.88,170.8,47.23227816]
[1730386908980,26.74047816,170.86,170.8,47.23227816]
[1730386909289,26.74047816,170.85,170.8,47.23227816]
[1730386909505,26.74047816,170.84,170.8,14.637]
[1730386909807,26.74047816,170.84,170.8,20.4918]
[1730386910604,26.74047816,170.83,170.8,20.4918]
[1730386911185,26.74047816,170.82,170.8,20.4918]
[1730386911384,26.74047816,170.81,170.76,26.74047816]
[1730386911585,26.74047816,170.79,170.73,26.74047816]
[1730386911787,26.74047816,170.75,170.72,14.6432]
[1730386912092,26.74047816,170.74,170.72,14.6432]
[1730386912293,26.74047816,170.75,170.72,14.6432]
[1730386912613,26.74047816,170.77,170.72,14.6432]
[1730386912925,26.74047816,170.77,170.72,41.38367816]
[1730386913405,26.74047816,170.78,170.73,26.74047816]
[1730386913623,26.74047816,170.83,170.77,47.23577816]
[1730386913784,26.74047816,170.84,170.79,26.74047816]
[1730386913982,26.74047816,170.85,170.79,26.74047816]
[1730386914186,26.74047816,170.86,170.81,26.74047816]
[1730386914490,26.74047816,170.88,170.83,26.74047816]
[1730386914811,26.74047816,170.86,170.81,26.74047816]
[1730386915117,26.74047816,170.87,170.82,26.74047816]
[1730386915490,26.74047816,170.84,170.79,26.74047816]
[1730386916397,26.74047816,170.85,170.79,26.74047816]
[1730386916593,26.74047816,170.85,170.8,47.23227816]
[1730386916802,26.74047816,170.86,170.8,47.23227816]
[1730386917007,26.74047816,170.86,170.81,26.74047816]
[1730386917511,26.74047816,170.87,170.81,26.74047816]
[1730386917710,26.74047816,170.88,170.83,26.74047816]
[1730386917891,26.74047816,170.87,170.82,26.74047816]
[1730386918091,26.74047816,170.89,170.83,50.51736216]
[1730386918311,26.74047816,170.88,170.82,26.74047816]
[1730386918493,26.74047816,170.86,170.81,26.74047816]
[1730386918694,26.74047816,170.88,170.82,26.74047816]
[1730386918916,26.74047816,170.88,170.8,29.274]
[1730386918917,26.74047816,170.88,170.83,47.22857816]
[1730386919487,26.74047816,170.89,170.83,47.22857816]
[1730386919689,26.74047816,170.91,170.85,26.74047816]
[1730386919915,26.74047816,170.92,170.86,26.74047816]
[1730386920208,26.74047816,170.91,170.86,26.74047816]
[1730386920401,26.74047816,170.91,170.85,26.74047816]
[1730386920911,26.74047816,170.91,170.86,20.4845]
[1730386921115,26.74047816,170.91,170.86,47.22497816]
[1730386921313,26.74047816,170.93,170.87,26.74047816]
[1730386921611,26.74047816,170.9,170.86,20.4845]
[1730386922386,26.74047816,170.92,170.86,47.22497816]
[1730386922605,26.74047816,170.92,170.87,26.74047816]
[1730386922805,26.74047816,170.92,170.88,20.4821]
[1730386923012,26.74047816,170.91,170.88,20.4821]
[1730386923213,26.74047816,170.9,170.88,14.6301]
[1730386923397,26.74047816,170.89,170.85,5.853]
[1730386923597,26.74047816,170.87,170.85,5.853]
[1730386923806,26.74047816,170.88,170.85,20.4857]
[1730386924902,26.74047816,170.88,170.85,14.6327]
[1730386925505,26.74047816,170.86,170.83,5.8536]
[1730386926303,26.74047816,170.87,170.83,20.488]
[1730386926738,26.74047816,170.85,170.83,14.6344]
[1730386927021,26.74047816,170.91,170.8,26.74047816]
[1730386927022,26.74047816,170.84,170.8,20.4918]
[1730386927333,26.74047816,170.83,170.8,20.4918]
[1730386927514,26.74047816,170.84,170.8,20.4918]
[1730386927829,26.74047816,170.82,170.8,14.637]
[1730386927998,26.74047816,170.81,170.76,14.6397]
[1730386928198,26.74047816,170.8,170.76,14.6397]
[1730386928630,26.74047816,170.79,170.76,20.4955]